bitfinex/quotes_SOLUSD_20260220
["timestamp","ask_amount","ask_price","bid_price","bid_amount"]
[1771628947245,0.95362066,84.549,84.521,0.98262195]
[1771628948134,0.95362066,84.539,84.521,0.98262195]
[1771628948650,11.82760088,84.548,84.521,0.98262195]
[1771628951740,0.95362066,84.539,84.5,1.19309248]
[1771628951944,4.30337341,84.52,84.5,1.19309248]
[1771628952153,0.95362066,84.527,84.5,1.19309248]
[1771628953954,0.95362066,84.525,84.5,1.19309248]
[1771628955938,0.95362066,84.519,84.5,0.2]
[1771628957839,4.30337341,84.52,84.5,0.2]
[1771628957840,11.83040236,84.528,84.501,0.99309248]
[1771628958259,0.95362066,84.527,84.501,0.99309248]
[1771628961961,11.83067931,84.526,84.501,0.99309248]
[1771628962359,12.78429997,84.526,84.501,0.99309248]
[1771628962865,0.95362066,84.525,84.501,0.99309248]
[1771628963261,5.25699407,84.52,84.501,0.99309248]
[1771628966546,0.95362066,84.518,84.501,0.99309248]
[1771628967056,0.95362066,84.518,84.491,0.99309248]
[1771628968066,0.95362066,84.516,84.491,0.99309248]
[1771628969154,0.95362066,84.514,84.491,0.99309248]
[1771628969358,0.95362066,84.509,84.481,0.99309248]
[1771628970563,0.95362066,84.507,84.481,0.99309248]
[1771628971262,0.95362066,84.507,84.483,0.99309248]
[1771628971569,11.83319922,84.508,84.483,0.99309248]
[1771628973250,30.53416849,84.515,84.483,0.99309248]
[1771628973251,12.78597979,84.514,84.483,0.99309248]
[1771628973775,0.95362066,84.51,84.483,0.99309248]
[1771628974168,0.95362066,84.509,84.483,0.99309248]
[1771628975167,41.41619727,84.508,84.483,0.99309248]
[1771628975388,0.95362066,84.507,84.483,0.99309248]
[1771628975761,0.95362066,84.507,84.47,0.2]
[1771628977576,4.30337341,84.51,84.471,11.8383824]
[1771628977760,11.83268828,84.512,84.481,0.96727643]
[1771628978067,12.78010932,84.512,84.481,0.96727643]
[1771628978672,0.94742104,84.511,84.481,0.96727643]
[1771628979175,11.83291918,84.51,84.481,0.96727643]
[1771628979760,12.78034022,84.51,84.481,0.96727643]
[1771628981278,0.94742104,84.509,84.481,0.96727643]
[1771628984458,4.30337341,84.53,84.491,0.96727643]
[1771628984663,3.77541236,84.576,84.501,0.96727643]
[1771628984664,11.82927983,84.536,84.501,0.96727643]
[1771628984860,4.30337341,84.55,84.511,0.96727643]
[1771628985168,0.94742104,84.551,84.487,5.36086188]
[1771628985169,0.94742104,84.551,84.521,0.96727643]
[1771628985572,29.56616746,84.557,84.521,0.96727643]
[1771628985573,0.94742104,84.549,84.521,0.96727643]
[1771628986475,11.82760088,84.548,84.521,0.96727643]
[1771628986662,0.94742104,84.547,84.521,0.96727643]
[1771628987678,0.94742104,84.547,84.522,0.96727643]
[1771628988375,0.94742104,84.553,84.522,0.96727643]
[1771628988679,0.94742104,84.553,84.524,0.96727643]
[1771628989174,11.82704134,84.552,84.524,0.96727643]
[1771628989380,12.77446238,84.552,84.524,0.96727643]
[1771628989681,12.77446238,84.552,84.497,5.36086188]
[1771628989682,0.94742104,84.549,84.505,0.96727643]
[1771628989985,0.94742104,84.549,84.511,0.96727643]
[1771628991060,0.94742104,84.549,84.51,4.30337341]
[1771628991061,0.94742104,84.549,84.513,0.96727643]
[1771628991370,11.82704134,84.552,84.521,0.96727643]
[1771628991679,11.82651019,84.556,84.521,0.96727643]
[1771628992059,0.94742104,84.565,84.521,0.96727643]
[1771628992260,0.94742104,84.565,84.531,0.96727643]
[1771628992664,11.82536303,84.564,84.531,0.96727643]
[1771628992883,12.77278407,84.564,84.531,0.96727643]
[1771628993064,0.94742104,84.563,84.531,0.96727643]
[1771628993258,0.94742104,84.563,84.533,0.96727643]
[1771628994780,0.94742104,84.561,84.533,0.96727643]
[1771628995972,0.94742104,84.561,84.53,4.30337341]
[1771628995973,0.94742104,84.561,84.535,0.96727643]
[1771628997271,0.94742104,84.561,84.537,0.96727643]
[1771628997962,0.94742104,84.559,84.537,0.96727643]
[1771628999683,0.94742104,84.559,84.539,0.96727643]
[1771629002486,11.82543799,84.564,84.541,0.96727643]
[1771629002682,12.77285903,84.564,84.541,0.96727643]
[1771629002864,11.82483457,84.568,84.541,0.96727643]
[1771629003187,0.94742104,84.567,84.541,0.96727643]
[1771629004785,11.82508336,84.566,84.543,0.96727643]
[1771629005291,0.94742104,84.575,84.543,0.96727643]
[1771629005584,47.35948067,84.64,84.561,0.96727643]
[1771629005585,29.55257641,84.595,84.561,0.96727643]
[1771629005785,0.94742104,84.594,84.561,0.96727643]
[1771629006284,0.94742104,84.579,84.542,11.8284403]
[1771629007073,11.82340561,84.578,84.533,29.5741666]
[1771629007371,0.94742104,84.577,84.533,29.5741666]
[1771629008078,0.94742104,84.577,84.534,0.85248934]
[1771629012485,0.95461549,84.575,84.536,0.85164124]
[1771629012985,0.95461549,84.575,84.541,0.85164124]
[1771629017885,0.95461549,84.573,84.543,0.84150235]
[1771629018083,4.3023589,84.59,84.543,0.84150235]
[1771629018084,0.95461549,84.588,84.543,0.84150235]
[1771629018672,0.95461549,84.588,84.551,0.83954051]
[1771629021081,41.37751663,84.587,84.551,0.83954051]
[1771629021281,0.95461549,84.586,84.551,0.83954051]
[1771629023294,4.3023589,84.59,84.551,0.83954051]
[1771629023295,0.95461549,84.584,84.551,0.83954051]
[1771629024292,0.95461549,84.582,84.551,0.83954051]
[1771629024594,0.95461549,84.579,84.551,0.83954051]
[1771629025493,0.95461549,84.577,84.551,0.83954051]
[1771629027693,0.95461549,84.575,84.551,0.83954051]
[1771629030306,0.95461549,84.573,84.551,0.83954051]
[1771629030902,0.95461549,84.569,84.532,0.81773741]
[1771629033506,0.95461549,84.567,84.534,0.81438416]
[1771629036312,0.95461549,84.565,84.536,0.80950731]
[1771629039518,0.93029773,84.563,84.532,0.80325869]
[1771629042198,0.93029773,84.561,84.534,0.79875248]
[1771629044023,11.82564272,84.562,84.534,0.79875248]
[1771629044024,0.93029773,84.559,84.534,0.79875248]
[1771629046524,0.93029773,84.557,84.534,0.79875248]
[1771629047931,0.93029773,84.557,84.535,11.82941976]
[1771629048713,0.93029773,84.557,84.535,0.7888201]
[1771629049725,11.82648185,84.556,84.535,0.7888201]
[1771629049927,11.82648185,84.556,84.522,0.78747574]
[1771629049928,0.93029773,84.555,84.522,0.78747574]
[1771629052411,0.93029773,84.553,84.524,0.78350594]
[1771629053217,0.93029773,84.553,84.531,0.78350594]
[1771629053421,0.93029773,84.558,84.531,0.78350594]
[1771629054616,0.93029773,84.556,84.533,0.78094088]
[1771629060841,0.93029773,84.556,84.535,0.77478008]
[1771629063339,4.3023589,84.58,84.52,4.3023589]
[1771629063340,0.93029773,84.577,84.541,0.77123643]
[1771629066541,41.38191964,84.578,84.54,4.30119561]
[1771629066542,0.93029773,84.575,84.543,0.76669543]
[1771629066947,0.93029773,84.575,84.55,4.30119561]
[1771629067145,4.40119561,84.64,84.561,0.7655918]
[1771629067146,0.90636553,84.585,84.561,0.7655918]
[1771629067344,29.55357685,84.593,84.561,0.7655918]
[1771629067556,11.82186809,84.589,84.561,0.7655918]
[1771629068654,11.82186809,84.589,84.563,0.76234641]
[1771629069758,0.90871951,84.589,84.564,11.82536303]
[1771629069933,0.90871951,84.589,84.565,0.76128945]
[1771629070525,29.55031183,84.602,84.565,0.76128945]
[1771629070858,11.81921331,84.608,84.571,0.76024446]
[1771629071063,11.81921331,84.608,84.564,41.38877062]
[1771629071064,11.81814058,84.616,84.591,0.76024446]
[1771629071432,0.90871951,84.615,84.591,0.76024446]
[1771629072049,0.90871951,84.613,84.591,0.76024446]
[1771629074453,0.90871951,84.613,84.56,4.30119561]
[1771629074454,0.90871951,84.599,84.562,0.7562409]
[1771629074638,0.90871951,84.599,84.556,0.75431075]
[1771629074953,0.90871951,84.589,84.556,0.75431075]
[1771629075837,0.90871951,84.587,84.556,0.75431075]
[1771629076242,0.90871951,84.587,84.557,0.75241549]
[1771629077652,0.90871951,84.585,84.557,0.75241549]
[1771629079753,0.90871951,84.618,84.571,0.74501749]
[1771629079954,0.90871951,84.618,84.581,0.74501749]
[1771629081638,0.90871951,84.618,84.591,0.7414432]
[1771629082040,0.90871951,84.616,84.591,0.7414432]
[1771629084059,0.90871951,84.614,84.591,0.7414432]
[1771629084438,0.90871951,84.614,84.592,11.82144883]
[1771629084649,0.90871951,84.614,84.592,0.73623775]
[1771629087862,0.90871951,84.612,84.592,0.73623775]
[1771629089360,11.81879424,84.611,84.587,0.72959316]
[1771629089560,0.90871951,84.609,84.581,0.72797564]
[1771629091356,11.81921331,84.608,84.581,0.72797564]
[1771629091560,0.90871951,84.607,84.581,0.72797564]
[1771629092150,0.90871951,84.607,84.562,0.72479651]
[1771629092350,0.90871951,84.599,84.562,0.72479651]
[1771629095456,0.90871951,84.597,84.564,0.71866752]
[1771629095867,0.90871951,84.597,84.563,11.82550287]
[1771629096174,0.90871951,84.597,84.56,0.71866752]
[1771629097491,11.82088987,84.596,84.56,0.71866752]
[1771629097667,0.89250338,84.595,84.56,0.71866752]
[1771629100283,0.89250338,84.593,84.561,0.71140314]
[1771629101384,0.89250338,84.591,84.561,0.71140314]
[1771629103286,0.89250338,84.589,84.561,0.71140314]
[1771629105993,0.89250338,84.587,84.563,0.70321817]
[1771629106391,11.82200784,84.588,84.563,0.70321817]
[1771629106594,0.89250338,84.604,84.581,0.70190564]
[1771629109570,0.89250338,84.602,84.581,0.70190564]
[1771629110195,0.89250338,84.602,84.569,11.82463408]
[1771629110372,0.89250338,84.602,84.57,0.69806327]
[1771629111905,0.89250338,84.6,84.572,0.69556706]
[1771629113384,0.89250338,84.598,84.572,0.69556706]
[1771629114090,0.89250338,84.598,84.574,0.69313831]
[1771629115500,0.89250338,84.603,84.575,11.823825]
[1771629115795,0.89250338,84.603,84.576,0.69075311]
[1771629118693,0.89250338,84.603,84.578,0.68727368]
[1771629120088,0.89250338,84.603,84.581,0.68614041]
[1771629122099,0.89250338,84.603,84.58,4.30119561]
[1771629122100,0.89250338,84.617,84.591,0.68392291]
[1771629122298,0.1,84.62,84.601,0.68392291]
[1771629125408,0.1,84.62,84.602,0.68068302]
[1771629127805,0.1,84.62,84.603,11.81991182]
[1771629128006,0.1,84.62,84.604,0.67552395]
[1771629132112,0.80086474,84.639,84.611,0.57162029]
[1771629132318,0.80086474,84.639,84.62,4.29530423]
[1771629132621,0.80086474,84.639,84.621,0.57162029]
[1771629133408,0.80086474,84.639,84.623,0.57074548]
[1771629136017,0.80086474,84.639,84.618,12.38592001]
[1771629139303,0.80086474,84.639,84.582,62.2]
[1771629139304,0.80086474,84.639,84.6,4.29530423]
[1771629139530,0.80086474,84.637,84.602,12.3849664]
[1771629140025,0.80086474,84.637,84.603,0.56491487]
[1771629143007,0.80086474,84.635,84.605,0.56256206]
[1771629144010,0.80086474,84.635,84.611,0.5617975]
[1771629144205,0.1,84.64,84.621,0.5617975]
[1771629145124,0.1,84.64,84.631,0.56104819]
[1771629146109,0.1,84.64,84.631,12.37696765]
[1771629146421,0.1,84.64,84.631,11.81591946]
[1771629148622,0.40086474,84.645,84.627,11.81655972]
[1771629149538,11.81418647,84.644,84.603,0.80922479]
[1771629149715,11.81418647,84.644,84.605,0.80922479]
[1771629150212,11.81418647,84.644,84.611,0.80922479]
[1771629150628,11.81418647,84.644,84.61,4.29530423]
[1771629150629,0.80086474,84.643,84.613,0.80922479]
[1771629152840,0.80086474,84.641,84.607,0.80922479]
[1771629153017,0.80086474,84.641,84.61,5.10452902]
[1771629153337,0.80086474,84.641,84.611,0.80922479]
[1771629154713,0.80086474,84.641,84.612,11.81865456]
[1771629155736,0.80086474,84.641,84.613,0.80922479]
[1771629156436,0.80086474,84.639,84.613,0.80922479]
[1771629157616,0.80086474,84.639,84.614,11.8183752]
[1771629157823,0.85169815,84.637,84.61,11.81886624]
[1771629159517,0.85169815,84.637,84.61,12.67326868]
[1771629160517,11.81530318,84.636,84.61,0.85440244]
[1771629160743,0.85169815,84.635,84.61,0.85440244]
[1771629161541,0.85169815,84.635,84.605,0.85440244]
[1771629162934,0.85169815,84.633,84.606,11.8194927]
[1771629163141,0.85169815,84.633,84.601,11.82018991]
[1771629164433,4.29530423,84.64,84.594,29.55287587]
[1771629164434,0.85169815,84.631,84.594,29.55287587]
[1771629166024,4.29530423,84.62,84.591,11.82158858]
[1771629166235,0.85169815,84.619,84.591,11.82158858]
[1771629166427,0.85169815,84.617,84.584,11.82256691]
[1771629166741,0.85169815,84.617,84.584,12.67696935]
[1771629169653,0.85169815,84.615,84.584,12.67696935]
[1771629170046,0.85169815,84.615,84.584,0.85440244]
[1771629170235,0.85169815,84.615,84.58,11.82311507]
[1771629171162,11.8183752,84.614,84.579,0.85440244]
[1771629171364,0.85169815,84.613,84.579,0.85440244]
[1771629172754,0.85169815,84.613,84.581,0.85440244]
[1771629173854,0.85169815,84.611,84.583,0.85440244]
[1771629176743,0.85169815,84.616,84.585,0.85440244]
[1771629177147,0.85169815,84.616,84.591,0.85440244]
[1771629178355,0.85169815,84.616,84.593,0.85440244]
[1771629182566,32.50209594,84.629,84.6,4.29530423]
[1771629182567,0.85169815,84.626,84.6,4.29530423]
[1771629182747,0.85169815,84.626,84.601,0.85440244]
[1771629186770,0.85169815,84.609,84.577,11.82348113]
[1771629188179,0.85364559,84.607,84.571,11.82438424]
[1771629188674,0.85364559,84.599,84.567,11.82493235]
[1771629188879,0.85364559,84.599,84.561,11.82578257]
[1771629189573,0.85364559,84.599,84.561,11.91841104]
[1771629190778,0.85364559,84.597,84.561,0.09262847]
[1771629192578,0.85364559,84.597,84.551,11.82718122]
[1771629192579,0.85364559,84.597,84.552,0.09337941]
[1771629193877,0.85364559,84.589,84.552,0.09337941]
[1771629196168,0.85364559,84.587,84.552,0.09337941]
[1771629201175,0.85364559,84.585,84.552,0.09337941]
[1771629205271,0.85364559,84.583,84.552,0.09337941]
[1771629208288,0.85364559,84.581,84.551,11.82718122]
[1771629208487,0.85364559,84.581,84.551,11.92615017]
[1771629208792,0.85364559,84.581,84.552,0.09896895]
[1771629212978,0.85364559,84.579,84.53,0.10011391]
[1771629213296,0.85364559,84.579,84.531,0.10011391]
[1771629215280,0.85364559,84.577,84.531,0.10011391]
[1771629219001,0.83967847,84.575,84.532,0.10200443]
[1771629220801,0.83967847,84.575,84.541,0.1025235]
[1771629222806,0.83967847,84.573,84.541,0.1025235]
[1771629226506,0.83967847,84.571,84.541,0.1025235]
[1771629227894,0.83967847,84.571,84.536,0.1042008]
[1771629228100,0.83967847,84.569,84.536,0.1042008]
[1771629228497,0.83967847,84.567,84.532,0.10443043]
[1771629229209,0.83967847,84.559,84.528,0.10443043]
[1771629229400,0.83967847,84.549,84.521,0.10443043]
[1771629234213,0.83967847,84.549,84.522,0.10556816]
[1771629239730,0.83967847,84.559,84.531,0.10686862]
[1771629242432,0.83967847,84.557,84.521,41.40982713]
[1771629242808,0.83967847,84.557,84.522,0.10747]
[1771629243221,0.83967847,84.557,84.521,41.40982713]
[1771629243828,0.83967847,84.557,84.521,41.51749155]
[1771629244212,0.83967847,84.555,84.522,0.10766442]
[1771629244803,0.83967847,84.56,84.531,0.10785763]
[1771629246225,0.83967847,84.557,84.521,0.10804742]
[1771629249332,0.84493016,84.555,84.521,0.10804742]
[1771629252332,0.84493016,84.553,84.521,0.10804742]
[1771629252727,0.84493016,84.553,84.511,11.83277916]
[1771629252927,0.84493016,84.553,84.51,0.2]
[1771629252928,0.84493016,84.539,84.51,0.2]
[1771629254223,11.82899997,84.538,84.51,0.2]
[1771629254545,0.84493016,84.529,84.491,0.30985149]
[1771629254729,0.84493016,84.529,84.491,12.14543161]
[1771629255335,0.84493016,84.529,84.49,0.2]
[1771629255940,0.84493016,84.519,84.49,0.2]
[1771629256435,0.84493016,84.517,84.49,0.2]
[1771629260157,11.83207913,84.516,84.49,0.2]
[1771629260362,0.84493016,84.515,84.49,0.2]
[1771629262962,0.84493016,84.513,84.49,0.2]
[1771629263461,3.69383402,84.543,84.491,0.31291642]
[1771629263650,0.84493016,84.529,84.492,0.31291642]
[1771629265554,0.84493016,84.529,84.491,11.83558012]
[1771629265555,0.84493016,84.527,84.491,11.83558012]
[1771629266167,0.84493016,84.527,84.491,12.14906597]
[1771629267462,0.84493016,84.525,84.492,0.3140556]
[1771629267668,4.30295909,84.54,84.493,0.85348029]
[1771629267973,11.82886005,84.539,84.501,0.85348029]
[1771629268952,11.82886005,84.539,84.503,0.85348029]
[1771629269667,0.84493016,84.538,84.503,0.85348029]
[1771629273164,0.84493016,84.536,84.505,0.85348029]
[1771629274775,0.84493016,84.529,84.496,11.83487975]
[1771629275871,0.84493016,84.527,84.495,0.85348029]
[1771629277071,0.84493016,84.519,84.495,0.85348029]
[1771629277866,0.84493016,84.519,84.496,12.70279897]
[1771629278067,0.84493016,84.519,84.497,0.86791922]
[1771629280485,0.85489523,84.517,84.492,11.83534043]
[1771629280870,11.83179914,84.518,84.493,0.86791922]
[1771629281877,0.85489523,84.517,84.493,0.86791922]
[1771629285264,0.85489523,84.515,84.493,0.86791922]
[1771629290573,0.85489523,84.527,84.495,0.86791922]
[1771629291291,0.85489523,84.524,84.495,0.86791922]
[1771629295372,0.85489523,84.522,84.495,0.86791922]
[1771629297695,0.85489523,84.52,84.495,0.86791922]
[1771629299196,11.83137918,84.521,84.495,0.86791922]
[1771629299486,11.83137918,84.521,84.49,0.2]
[1771629299487,12.68627441,84.521,84.497,0.86791922]
[1771629299675,12.68655438,84.519,84.497,0.86791922]
[1771629299878,0.85489523,84.519,84.499,0.86791922]
[1771629303091,0.85489523,84.519,84.5,11.83431952]
[1771629303592,0.85489523,84.519,84.5,12.70223874]
[1771629304195,0.85489523,84.519,84.501,0.86791922]
[1771629307395,0.81260204,84.548,84.502,0.82253905]
[1771629307788,0.81260204,84.539,84.502,0.82253905]
[1771629308683,0.81170703,84.529,84.502,0.82253905]
[1771629309596,0.81170703,84.529,84.503,11.83389938]
[1771629309800,0.81170703,84.529,84.504,0.84987738]
[1771629310674,11.83039939,84.528,84.504,0.84987738]
[1771629310873,0.81170703,84.527,84.504,0.84987738]
[1771629313199,0.81170703,84.525,84.504,0.84987738]
[1771629315491,0.81170703,84.523,84.497,0.84987738]
[1771629317500,0.81170703,84.521,84.497,0.84987738]
[1771629320091,0.81170703,84.519,84.497,0.84987738]
[1771629320289,0.81170703,84.519,84.49,1.04987738]
[1771629320500,0.81170703,84.519,84.49,0.2]
[1771629320802,0.81170703,84.509,84.49,0.2]
[1771629321491,11.83314642,84.509,84.49,0.2]
[1771629321693,0.81170703,84.508,84.49,0.2]
[1771629322807,0.81170703,84.499,84.48,0.2]
[1771629323214,0.81170703,84.489,84.48,0.2]
[1771629324796,4.30633093,84.5,84.481,0.84987738]
[1771629325291,11.83319922,84.508,84.481,0.84987738]
[1771629327008,0.81170703,84.507,84.481,0.84987738]
[1771629327206,0.81170703,84.507,84.483,0.84987738]
[1771629327407,4.30633093,84.52,84.483,0.84987738]
[1771629327608,0.81170703,84.518,84.483,0.84987738]
[1771629327809,4.30633093,84.51,84.483,0.84987738]
[1771629328022,0.81170703,84.509,84.481,11.83698109]
[1771629329211,11.83319922,84.508,84.481,11.83698109]
[1771629329411,0.81170703,84.507,84.481,11.83698109]
[1771629330925,0.81170703,84.507,84.482,0.84987738]
[1771629331214,0.81170703,84.507,84.481,12.68685847]
[1771629331698,0.81170703,84.505,84.48,12.88691098]
[1771629333213,0.81170703,84.505,84.482,11.83684098]
[1771629335017,0.81170703,84.505,84.482,12.68671836]
[1771629335805,0.81170703,84.505,84.482,11.83684098]
[1771629336011,0.81170703,84.505,84.482,12.68671836]
[1771629336207,0.81170703,84.499,84.47,1.04987738]
[1771629336410,5.11803796,84.49,84.471,0.84987738]
[1771629336609,0.81170703,84.489,84.471,0.84987738]
[1771629336808,0.81170703,84.489,84.464,11.83933812]
[1771629338719,0.83496081,84.487,84.462,0.84987738]
[1771629339012,0.83496081,84.487,84.464,0.87840498]
[1771629341216,0.83496081,84.479,84.451,11.84118601]
[1771629341811,0.83496081,84.479,84.452,0.87840498]
[1771629342000,11.83628056,84.486,84.45,0.2]
[1771629342001,0.83496081,84.469,84.45,0.2]
[1771629343531,0.83496081,84.467,84.45,0.2]
[1771629343820,11.83277916,84.511,84.461,0.87840498]
[1771629344000,11.83277916,84.511,84.471,0.87840498]
[1771629344001,0.83496081,84.509,84.471,0.87840498]
[1771629345506,0.83496081,84.507,84.473,0.87840498]
[1771629347022,0.83496081,84.489,84.462,11.83953372]
[1771629347227,0.83496081,84.489,84.462,12.7179387]
[1771629347724,0.83496081,84.487,84.462,12.7179387]
[1771629348107,0.83496081,84.487,84.463,0.87840498]
[1771629348628,0.83496081,84.479,84.452,0.87840498]
[1771629349011,0.83496081,84.479,84.45,0.2]
[1771629350505,0.83496081,84.479,84.451,12.71959099]
[1771629351231,0.83496081,84.477,84.451,12.71959099]
[1771629351409,0.83496081,84.469,84.45,0.2]
[1771629351729,0.83496081,84.469,84.44,0.2]
[1771629352532,0.83496081,84.459,84.44,0.2]
[1771629353232,4.30633093,84.47,84.44,0.2]
[1771629353529,4.30633093,84.49,84.442,0.87840498]
[1771629354521,33.89573053,84.49,84.443,11.84230782]
[1771629354731,33.89573053,84.49,84.444,0.87840498]
[1771629355039,45.73145073,84.49,84.444,0.87840498]
[1771629355241,4.30633093,84.47,84.44,0.2]
[1771629355537,0.83496081,84.469,84.44,0.2]
[1771629355721,0.83496081,84.469,84.44,1.07840498]
[1771629356442,0.83496081,84.469,84.441,12.72099329]
[1771629356641,0.83496081,84.459,84.44,0.2]
[1771629357225,0.83496081,84.459,84.44,12.04267769]
[1771629359045,0.83496081,84.464,84.441,0.87840498]
[1771629360346,12.67373658,84.469,84.443,0.87840498]
[1771629360735,0.83496081,84.468,84.443,0.87840498]
[1771629361336,0.83496081,84.468,84.44,0.2]
[1771629361851,0.83496081,84.468,84.441,11.84258831]
[1771629363244,0.83496081,84.459,84.44,0.2]
[1771629364244,0.83496081,84.459,84.44,1.07840498]
[1771629365131,0.83496081,84.457,84.44,0.2]
[1771629365534,0.83496081,84.457,84.43,1e-08]
[1771629365935,0.83496081,84.457,84.432,0.87840498]
[1771629368354,0.83496081,84.457,84.434,0.90420767]
[1771629368949,0.91309535,84.455,84.43,1e-08]
[1771629369935,0.91309535,84.455,84.431,11.84399095]
[1771629370454,0.91309535,84.455,84.431,0.86438754]
[1771629376652,0.91309535,84.455,84.433,0.86438754]
[1771629378558,11.84076538,84.454,84.433,0.86438754]
[1771629379264,0.91309535,84.454,84.433,0.86438754]
[1771629382145,11.8400644,84.459,84.433,0.86438754]
[1771629382146,0.91309535,84.452,84.433,0.86438754]
[1771629382352,0.91309535,84.452,84.43,1e-08]
[1771629382859,0.91309535,84.452,84.43,11.84406747]
[1771629385552,0.91309535,84.449,84.43,1e-08]
[1771629386879,11.84160666,84.448,84.43,1e-08]
[1771629389554,0.91309535,84.447,84.43,1e-08]
[1771629392568,0.91309535,84.445,84.43,1e-08]
[1771629392769,0.91309535,84.445,84.42,1.06438754]
[1771629393268,5.22696588,84.44,84.42,1.06438754]
[1771629393451,0.91309535,84.439,84.42,1.06438754]
[1771629394973,11.84300907,84.438,84.42,1.06438754]
[1771629397071,11.84252478,84.442,84.42,1.06438754]
[1771629398074,0.91414164,84.441,84.42,1.06438754]
[1771629401266,11.84272856,84.44,84.42,1.06438754]
[1771629401468,12.7568702,84.44,84.42,1.06438754]
[1771629404077,0.91414164,84.439,84.42,1.06438754]
[1771629405261,0.91414164,84.445,84.42,1.06438754]
[1771629405662,0.91414164,84.445,84.422,0.89354776]
[1771629406479,12.75623831,84.445,84.422,0.89354776]
[1771629408783,0.91414164,84.444,84.422,0.89354776]
[1771629418889,0.91414164,84.442,84.422,0.89354776]
[1771629420594,0.91414164,84.44,84.422,0.89354776]
[1771629420787,11.84258831,84.441,84.422,0.89354776]
[1771629421294,0.91414164,84.44,84.422,0.89354776]
[1771629428792,11.84286881,84.439,84.422,0.89354776]
[1771629428994,0.97294048,84.438,84.422,0.89354776]
[1771629430903,0.97294048,84.436,84.422,0.89354776]
[1771629431911,11.84342985,84.435,84.422,0.89354776]
[1771629434102,0.97294048,84.44,84.422,0.89354776]
[1771629438985,0.97294048,84.438,84.422,0.89354776]
[1771629439804,0.97294048,84.438,84.42,1e-08]
[1771629440003,0.97294048,84.438,84.41,0.2]
[1771629441609,0.97294048,84.436,84.41,12.04680084]
[1771629441790,0.97294048,84.436,84.411,0.90808413]
[1771629445108,0.97294048,84.434,84.411,0.90808413]
[1771629447401,0.97294048,84.442,84.413,0.90808413]
[1771629448311,0.97294048,84.439,84.413,0.90808413]
[1771629448994,0.97294048,84.437,84.413,0.90808413]
[1771629450619,29.60483964,84.446,84.413,0.90808413]
[1771629450620,0.97294048,84.435,84.413,0.90808413]
[1771629451316,4.31488986,84.43,84.4,12.04831536]
[1771629451615,4.31488986,84.43,84.39,4.31488986]
[1771629451616,0.97294048,84.435,84.359,29.63503119]
[1771629451822,0.97294048,84.399,84.374,11.85187084]
[1771629453194,11.84840117,84.4,84.369,11.85259174]
[1771629453195,0.97294048,84.397,84.369,11.85259174]
[1771629453404,0.97294048,84.397,84.36,4.31488986]
[1771629453405,0.97294048,84.397,84.37,0.86071545]
[1771629454523,0.97294048,84.395,84.37,0.86071545]
[1771629455819,0.97294048,84.393,84.37,0.2]
[1771629456933,0.97294048,84.379,84.348,0.66597084]
[1771629457419,47.36727624,84.447,84.37,4.31488986]
[1771629457626,0.14216157,84.419,84.381,0.99136405]
[1771629457825,0.28432314,84.419,84.381,0.99136405]
[1771629458008,3.69383402,84.415,84.381,0.99136405]
[1771629458322,11.84581487,84.418,84.382,11.85086866]
[1771629458531,11.84581487,84.418,84.383,0.99136405]
[1771629459030,6.18540757,84.458,84.382,11.85086866]
[1771629459031,11.84407736,84.431,84.391,0.99136405]
[1771629459206,11.84407736,84.431,84.401,0.99136405]
[1771629459521,0.97336413,84.43,84.401,0.99136405]
[1771629460625,0.97336413,84.428,84.403,0.99136405]
[1771629462227,0.97336413,84.449,84.411,0.99136405]
[1771629462930,0.97336413,84.447,84.413,0.99136405]
[1771629463925,0.97336413,84.447,84.421,0.99136405]
[1771629465725,0.97336413,84.446,84.423,0.99136405]
[1771629466315,11.84187098,84.447,84.423,0.99136405]
[1771629467028,12.81456465,84.451,84.423,0.99136405]
[1771629467520,0.97336413,84.456,84.431,0.99136405]
[1771629467729,11.84062518,84.455,84.431,0.99136405]
[1771629468615,11.84062518,84.455,84.433,0.99136405]
[1771629470027,0.97336413,84.467,84.441,0.99136405]
[1771629472732,0.97336413,84.465,84.441,0.99136405]
[1771629473833,11.83936351,84.464,84.441,0.99136405]
[1771629474015,0.97336413,84.463,84.441,0.99136405]
[1771629475429,0.97336413,84.463,84.431,0.99136405]
[1771629475618,0.97336413,84.459,84.431,0.99136405]
[1771629476949,0.97336413,84.462,84.432,0.99136405]
[1771629477130,3.69383402,84.489,84.431,11.84399095]
[1771629477131,0.97336413,84.471,84.441,0.99136405]
[1771629478535,0.97336413,84.474,84.443,0.99136405]
[1771629480014,29.59472048,84.475,84.443,0.99136405]
[1771629480015,0.97336413,84.469,84.443,0.99136405]
[1771629480635,11.83880286,84.468,84.443,0.99136405]
[1771629480839,0.97336413,84.467,84.443,0.99136405]
[1771629481043,0.97336413,84.467,84.431,0.99136405]
[1771629482646,0.97336413,84.447,84.405,0.99136405]
[1771629482826,41.44562333,84.448,84.405,0.99136405]
[1771629482827,0.97336413,84.439,84.405,0.99136405]
[1771629483026,0.97336413,84.439,84.407,0.99136405]
[1771629487527,11.84300907,84.438,84.411,0.92162751]